[Event "Titled Tuesday Blitz May 23 Late 2023"]
[White "Ibarra Jerez, Jose Carlos"]
[Black "Badmatsyrenov, Oleg"]
[WhiteFideId "2226332"]
[BlackFideId "24115762"]
[WhiteElo "2638"]
[BlackElo "2396"]
[Result "1-0"]
[Round "09"]
[TimeControl "180+2"]
[Date "2023.05.23"]
[WhiteClock "0:00:05"]
[BlackClock "0:00:41"]

1. e4 {[%clk 0:02:59]}  c5 {[%clk 0:03:00]} 2. Nc3 {[%clk 0:02:58]}  a6 {[%clk 0:02:59]} 3. g4 {[%clk 0:02:58]}  b5 {[%clk 0:03:00]} 4. Bg2 {[%clk 0:02:58]}  Bb7 {[%clk 0:03:00]} 5. d3 {[%clk 0:02:58]}  Nc6 {[%clk 0:02:58]} 6. Nh3 {[%clk 0:02:56]}  e6 {[%clk 0:02:55]} 7. O-O {[%clk 0:02:54]}  Nge7 {[%clk 0:02:43]} 8. f4 {[%clk 0:02:54]}  b4 {[%clk 0:02:39]} 9. Na4 {[%clk 0:02:53]}  Ng6 {[%clk 0:02:36]} 10. Be3 {[%clk 0:02:53]}  Nd4 {[%clk 0:02:30]} 11. c3 {[%clk 0:02:51]}  bxc3 {[%clk 0:02:19]} 12. bxc3 {[%clk 0:02:52]}  Nb5 {[%clk 0:02:20]} 13. Nxc5 {[%clk 0:02:48]}  Bxc5 {[%clk 0:02:15]} 14. Bxc5 {[%clk 0:02:49]}  Rc8 {[%clk 0:02:16]} 15. Be3 {[%clk 0:02:26]}  Nxc3 {[%clk 0:02:15]} 16. Qb3 {[%clk 0:02:19]}  Ba8 {[%clk 0:02:03]} 17. f5 {[%clk 0:02:13]}  Ne5 {[%clk 0:01:59]} 18. Kh1 {[%clk 0:02:03]}  Nxg4 {[%clk 0:01:46]} 19. Bd4 {[%clk 0:01:59]}  Ne2 {[%clk 0:01:33]} 20. Bb6 {[%clk 0:01:15]}  Qh4 {[%clk 0:01:10]} 21. Rae1 {[%clk 0:01:08]}  Ng3+ {[%clk 0:01:09]} 22. hxg3 {[%clk 0:01:03]}  Qxg3 {[%clk 0:01:10]} 23. Bg1 {[%clk 0:01:00]}  O-O {[%clk 0:01:06]} 24. Qd1 {[%clk 0:00:50]}  exf5 {[%clk 0:01:05]} 25. Rxf5 {[%clk 0:00:49]}  d5 {[%clk 0:00:57]} 26. Rg5 {[%clk 0:00:47]}  f5 {[%clk 0:00:52]} 27. exf5 {[%clk 0:00:44]}  h5 {[%clk 0:00:52]} 28. Re7 {[%clk 0:00:40]}  Rf7 {[%clk 0:00:48]} 29. Rxf7 {[%clk 0:00:40]}  Kxf7 {[%clk 0:00:48]} 30. Rxh5 {[%clk 0:00:40]}  d4 {[%clk 0:00:40]} 31. Qb3+ {[%clk 0:00:20]}  Ke7 {[%clk 0:00:40]} 32. Qe6+ {[%clk 0:00:20]}  Kd8 {[%clk 0:00:40]} 33. Rh8+ {[%clk 0:00:20]}  Kc7 {[%clk 0:00:41]} 34. Rxc8# {[%clk 0:00:05]} 1-0


[Site "https://www.chess.com"]

[Event "Titled Tuesday Blitz May 23 Late 2023"]
[White "Simonian, Hrair"]
[Black "Zhigalko, Sergei"]
[WhiteFideId "13302337"]
[BlackFideId "13502956"]
[WhiteElo "2447"]
[BlackElo "2626"]
[Result "1-0"]
[Round "09"]
[TimeControl "180+2"]
[Date "2023.05.23"]
[WhiteClock "0:00:35"]
[BlackClock "0:00:00"]

1. e4 {[%clk 0:03:00]}  c5 {[%clk 0:02:54]} 2. Nc3 {[%clk 0:03:00]}  Nc6 {[%clk 0:02:54]} 3. Bb5 {[%clk 0:03:00]}  Nd4 {[%clk 0:02:54]} 4. Bc4 {[%clk 0:03:00]}  e6 {[%clk 0:02:55]} 5. Nge2 {[%clk 0:03:00]}  Nf6 {[%clk 0:02:48]} 6. O-O {[%clk 0:03:00]}  a6 {[%clk 0:02:47]} 7. d3 {[%clk 0:02:55]}  b5 {[%clk 0:02:39]} 8. Bb3 {[%clk 0:02:54]}  Nxb3 {[%clk 0:02:39]} 9. axb3 {[%clk 0:02:53]}  b4 {[%clk 0:02:35]} 10. Na4 {[%clk 0:02:52]}  Bb7 {[%clk 0:02:34]} 11. Ng3 {[%clk 0:02:43]}  h5 {[%clk 0:02:27]} 12. e5 {[%clk 0:02:40]}  h4 {[%clk 0:02:19]} 13. exf6 {[%clk 0:02:36]}  hxg3 {[%clk 0:02:19]} 14. fxg3 {[%clk 0:02:36]}  gxf6 {[%clk 0:02:17]} 15. Be3 {[%clk 0:02:35]}  Qc7 {[%clk 0:01:45]} 16. d4 {[%clk 0:02:27]}  cxd4 {[%clk 0:01:12]} 17. Bxd4 {[%clk 0:02:22]}  e5 {[%clk 0:01:12]} 18. Be3 {[%clk 0:02:18]}  Be7 {[%clk 0:01:07]} 19. c4 {[%clk 0:02:13]}  bxc3 {[%clk 0:01:03]} 20. bxc3 {[%clk 0:02:12]}  d5 {[%clk 0:01:00]} 21. Qe2 {[%clk 0:02:03]}  Qc6 {[%clk 0:00:57]} 22. Qf2 {[%clk 0:01:54]}  O-O-O {[%clk 0:00:29]} 23. b4 {[%clk 0:01:17]}  Kb8 {[%clk 0:00:10]} 24. Ba7+ {[%clk 0:01:15]}  Ka8 {[%clk 0:00:09]} 25. Bc5 {[%clk 0:01:03]}  Rd6 {[%clk 0:00:10]} 26. b5 {[%clk 0:00:57]}  Qxb5 {[%clk 0:00:08]} 27. Rfb1 {[%clk 0:00:56]}  Qc6 {[%clk 0:00:05]} 28. Rb6 {[%clk 0:00:54]}  Qc7 {[%clk 0:00:06]} 29. Bxd6 {[%clk 0:00:51]}  Bxd6 {[%clk 0:00:07]} 30. Rab1 {[%clk 0:00:51]}  Rb8 {[%clk 0:00:05]} 31. Rxd6 {[%clk 0:00:50]}  d4 {[%clk 0:00:03]} 32. Qxf6 {[%clk 0:00:41]}  dxc3 {[%clk 0:00:01]} 33. Rxa6+ {[%clk 0:00:39]}  Bxa6 {[%clk 0:00:01]} 34. Qxa6+ {[%clk 0:00:39]}  Qa7+ {[%clk 0:00:02]} 35. Nb6+ {[%clk 0:00:37]}  Rxb6 {[%clk 0:00:02]} 36. Rxb6 {[%clk 0:00:34]}  c2 {[%clk 0:00:03]} 37. Qxa7+ {[%clk 0:00:34]}  Kxa7 {[%clk 0:00:03]} 38. Rc6 {[%clk 0:00:35]}  c1=Q+ {[%clk 0:00:00]} 39. Rxc1 {[%clk 0:00:35]} 1-0


[Site "https://www.chess.com"]

[Event "Titled Tuesday Blitz May 23 Late 2023"]
[White "Rosen, Eric"]
[Black "Dardha, Daniel"]
[WhiteFideId "2032562"]
[BlackFideId "240990"]
[WhiteElo "2331"]
[BlackElo "2581"]
[Result "0-1"]
[Round "09"]
[TimeControl "180+2"]
[Date "2023.05.23"]
[WhiteClock "0:00:00"]
[BlackClock "0:01:39"]

1. d4 {[%clk 0:03:00]}  Nf6 {[%clk 0:02:59]} 2. Bf4 {[%clk 0:03:01]}  d5 {[%clk 0:02:58]} 3. e3 {[%clk 0:03:01]}  Bf5 {[%clk 0:02:53]} 4. Nd2 {[%clk 0:03:00]}  e6 {[%clk 0:02:54]} 5. c4 {[%clk 0:03:01]}  Bb4 {[%clk 0:02:53]} 6. Nf3 {[%clk 0:03:00]}  O-O {[%clk 0:02:52]} 7. a3 {[%clk 0:03:00]}  Bd6 {[%clk 0:02:49]} 8. Bg3 {[%clk 0:02:56]}  a5 {[%clk 0:02:45]} 9. Be2 {[%clk 0:02:56]}  a4 {[%clk 0:02:44]} 10. O-O {[%clk 0:02:56]}  Bxg3 {[%clk 0:02:44]} 11. hxg3 {[%clk 0:02:57]}  Nbd7 {[%clk 0:02:41]} 12. Nh4 {[%clk 0:02:44]}  Be4 {[%clk 0:02:41]} 13. Nb1 {[%clk 0:02:28]}  c6 {[%clk 0:02:33]} 14. Nc3 {[%clk 0:02:28]}  Qa5 {[%clk 0:02:34]} 15. g4 {[%clk 0:02:13]}  h6 {[%clk 0:02:33]} 16. Nxe4 {[%clk 0:02:04]}  Nxe4 {[%clk 0:02:34]} 17. Qc2 {[%clk 0:01:56]}  Ndf6 {[%clk 0:02:25]} 18. f3 {[%clk 0:01:40]}  Qd2 {[%clk 0:02:16]} 19. Qd3 {[%clk 0:00:59]}  Qxd3 {[%clk 0:02:09]} 20. Bxd3 {[%clk 0:00:59]}  Nd2 {[%clk 0:02:10]} 21. Rfd1 {[%clk 0:00:42]}  Nb3 {[%clk 0:02:10]} 22. g3 {[%clk 0:00:29]}  Nxa1 {[%clk 0:02:09]} 23. Rxa1 {[%clk 0:00:30]}  Rfb8 {[%clk 0:02:01]} 24. Ng2 {[%clk 0:00:25]}  dxc4 {[%clk 0:01:58]} 25. Bxc4 {[%clk 0:00:25]}  b5 {[%clk 0:01:59]} 26. Ba2 {[%clk 0:00:21]}  b4 {[%clk 0:02:00]} 27. Nf4 {[%clk 0:00:22]}  Nd5 {[%clk 0:01:55]} 28. Bxd5 {[%clk 0:00:17]}  cxd5 {[%clk 0:01:55]} 29. Nd3 {[%clk 0:00:12]}  bxa3 {[%clk 0:01:54]} 30. Rxa3 {[%clk 0:00:10]}  Rb3 {[%clk 0:01:54]} 31. Kf2 {[%clk 0:00:09]}  Rxa3 {[%clk 0:01:52]} 32. bxa3 {[%clk 0:00:09]}  Rb8 {[%clk 0:01:52]} 33. Nc5 {[%clk 0:00:06]}  Rb2+ {[%clk 0:01:52]} 34. Kf1 {[%clk 0:00:06]}  Ra2 {[%clk 0:01:53]} 35. Nxa4 {[%clk 0:00:03]}  Rxa3 {[%clk 0:01:54]} 36. Nc5 {[%clk 0:00:04]}  Rxe3 {[%clk 0:01:54]} 37. Kf2 {[%clk 0:00:04]}  Ra3 {[%clk 0:01:54]} 38. f4 {[%clk 0:00:04]}  g5 {[%clk 0:01:54]} 39. Nd7 {[%clk 0:00:04]}  Kg7 {[%clk 0:01:53]} 40. Ne5 {[%clk 0:00:03]}  f6 {[%clk 0:01:53]} 41. Nd7 {[%clk 0:00:02]}  gxf4 {[%clk 0:01:51]} 42. gxf4 {[%clk 0:00:03]}  h5 {[%clk 0:01:51]} 43. gxh5 {[%clk 0:00:03]}  Rh3 {[%clk 0:01:52]} 44. Nc5 {[%clk 0:00:02]}  Kf7 {[%clk 0:01:52]} 45. Kg2 {[%clk 0:00:03]}  Rxh5 {[%clk 0:01:52]} 46. Kg3 {[%clk 0:00:03]}  Rh8 {[%clk 0:01:53]} 47. Kf3 {[%clk 0:00:04]}  Rc8 {[%clk 0:01:53]} 48. Nb7 {[%clk 0:00:04]}  Ke7 {[%clk 0:01:51]} 49. Ke3 {[%clk 0:00:03]}  Rc3+ {[%clk 0:01:50]} 50. Ke2 {[%clk 0:00:03]}  Kd7 {[%clk 0:01:47]} 51. Kd2 {[%clk 0:00:02]}  Rf3 {[%clk 0:01:45]} 52. Nc5+ {[%clk 0:00:02]}  Kd6 {[%clk 0:01:43]} 53. Nd3 {[%clk 0:00:03]}  Rh3 {[%clk 0:01:39]} 54. Ke2 {[%clk 0:00:03]}  Rh5 {[%clk 0:01:39]} 55. Ke3 {[%clk 0:00:03]}  Kc6 {[%clk 0:01:39]} 56. Nc5 {[%clk 0:00:02]}  e5 {[%clk 0:01:38]} 57. fxe5 {[%clk 0:00:03]}  fxe5 {[%clk 0:01:39]} 58. Nb3 {[%clk 0:00:00]}  Rh3+ {[%clk 0:01:39]} 0-1


[Site "https://www.chess.com"]

[Event "Titled Tuesday Blitz May 23 Late 2023"]
[White "Prohaszka, Peter"]
[Black "Sychev, Klementy"]
[WhiteFideId "726265"]
[BlackFideId "4114060"]
[WhiteElo "2626"]
[BlackElo "2583"]
[Result "0-1"]
[Round "09"]
[TimeControl "180+2"]
[Date "2023.05.23"]
[WhiteClock "0:00:12"]
[BlackClock "0:00:12"]

1. d4 {[%clk 0:03:00]}  Nf6 {[%clk 0:02:59]} 2. Nf3 {[%clk 0:03:01]}  g6 {[%clk 0:02:54]} 3. c3 {[%clk 0:03:01]}  d6 {[%clk 0:02:51]} 4. Bg5 {[%clk 0:03:01]}  Bg7 {[%clk 0:02:50]} 5. Nbd2 {[%clk 0:03:01]}  O-O {[%clk 0:02:47]} 6. e4 {[%clk 0:03:01]}  c5 {[%clk 0:02:42]} 7. dxc5 {[%clk 0:03:00]}  dxc5 {[%clk 0:02:42]} 8. h3 {[%clk 0:03:01]}  Nc6 {[%clk 0:02:19]} 9. Be2 {[%clk 0:02:57]}  Qc7 {[%clk 0:02:14]} 10. O-O {[%clk 0:02:53]}  Nh5 {[%clk 0:02:13]} 11. Re1 {[%clk 0:02:54]}  b6 {[%clk 0:02:06]} 12. Qc2 {[%clk 0:02:51]}  Bb7 {[%clk 0:02:05]} 13. Nc4 {[%clk 0:02:49]}  h6 {[%clk 0:01:53]} 14. Be3 {[%clk 0:02:48]}  Rad8 {[%clk 0:01:49]} 15. Rad1 {[%clk 0:02:46]}  Nf4 {[%clk 0:00:59]} 16. Bf1 {[%clk 0:02:46]}  g5 {[%clk 0:00:57]} 17. a4 {[%clk 0:02:44]}  Rxd1 {[%clk 0:00:53]} 18. Rxd1 {[%clk 0:02:44]}  Rd8 {[%clk 0:00:54]} 19. Rxd8+ {[%clk 0:02:05]}  Nxd8 {[%clk 0:00:51]} 20. Ncd2 {[%clk 0:01:36]}  Ng6 {[%clk 0:00:42]} 21. a5 {[%clk 0:01:36]}  Nc6 {[%clk 0:00:24]} 22. a6 {[%clk 0:01:34]}  Bc8 {[%clk 0:00:23]} 23. Qa4 {[%clk 0:01:34]}  Kf8 {[%clk 0:00:20]} 24. Bb5 {[%clk 0:01:33]}  Nce5 {[%clk 0:00:16]} 25. Nxe5 {[%clk 0:01:09]}  Bxe5 {[%clk 0:00:15]} 26. Nc4 {[%clk 0:01:04]}  Bh2+ {[%clk 0:00:14]} 27. Kf1 {[%clk 0:01:03]}  Bf4 {[%clk 0:00:15]} 28. b4 {[%clk 0:00:58]}  Bxe3 {[%clk 0:00:09]} 29. Nxe3 {[%clk 0:00:59]}  cxb4 {[%clk 0:00:09]} 30. Qxb4 {[%clk 0:00:59]}  Qe5 {[%clk 0:00:04]} 31. Be2 {[%clk 0:00:35]}  Qh2 {[%clk 0:00:03]} 32. Ke1 {[%clk 0:00:34]}  Qg1+ {[%clk 0:00:03]} 33. Bf1 {[%clk 0:00:33]}  Bxa6 {[%clk 0:00:02]} 34. c4 {[%clk 0:00:31]}  Ne5 {[%clk 0:00:02]} 35. Qc3 {[%clk 0:00:28]}  f6 {[%clk 0:00:02]} 36. Qd4 {[%clk 0:00:19]}  Bb7 {[%clk 0:00:01]} 37. Ke2 {[%clk 0:00:11]}  Kf7 {[%clk 0:00:01]} 38. g3 {[%clk 0:00:05]}  a5 {[%clk 0:00:01]} 39. f4 {[%clk 0:00:03]}  gxf4 {[%clk 0:00:01]} 40. gxf4 {[%clk 0:00:04]}  Ng6 {[%clk 0:00:02]} 41. e5 {[%clk 0:00:03]}  fxe5 {[%clk 0:00:01]} 42. fxe5 {[%clk 0:00:03]}  Qg3 {[%clk 0:00:02]} 43. e6+ {[%clk 0:00:03]}  Ke8 {[%clk 0:00:01]} 44. Qd7+ {[%clk 0:00:03]}  Kf8 {[%clk 0:00:01]} 45. Qxb7 {[%clk 0:00:03]}  Nf4+ {[%clk 0:00:02]} 46. Kd2 {[%clk 0:00:04]}  Qf2+ {[%clk 0:00:02]} 47. Kc3 {[%clk 0:00:03]}  Qxe3+ {[%clk 0:00:02]} 48. Kc2 {[%clk 0:00:03]}  Nxe6 {[%clk 0:00:02]} 49. Bd3 {[%clk 0:00:03]}  Qxd3+ {[%clk 0:00:01]} 50. Kxd3 {[%clk 0:00:01]}  Nc5+ {[%clk 0:00:02]} 51. Kd4 {[%clk 0:00:01]}  Nxb7 {[%clk 0:00:03]} 52. Kd5 {[%clk 0:00:02]}  a4 {[%clk 0:00:03]} 53. Kc6 {[%clk 0:00:02]}  a3 {[%clk 0:00:04]} 54. Kxb7 {[%clk 0:00:03]}  a2 {[%clk 0:00:05]} 55. Kxb6 {[%clk 0:00:04]}  a1=Q {[%clk 0:00:05]} 56. c5 {[%clk 0:00:05]}  Qd4 {[%clk 0:00:06]} 57. Kb5 {[%clk 0:00:05]}  Ke8 {[%clk 0:00:06]} 58. c6 {[%clk 0:00:06]}  Kd8 {[%clk 0:00:07]} 59. h4 {[%clk 0:00:06]}  Kc7 {[%clk 0:00:07]} 60. h5 {[%clk 0:00:07]}  Qd5+ {[%clk 0:00:08]} 61. Kb4 {[%clk 0:00:06]}  Kxc6 {[%clk 0:00:08]} 62. Ka4 {[%clk 0:00:06]}  Qxh5 {[%clk 0:00:09]} 63. Kb4 {[%clk 0:00:07]}  Qc5+ {[%clk 0:00:09]} 64. Ka4 {[%clk 0:00:07]}  Qb5+ {[%clk 0:00:09]} 65. Ka3 {[%clk 0:00:07]}  e5 {[%clk 0:00:10]} 66. Ka2 {[%clk 0:00:08]}  e4 {[%clk 0:00:11]} 67. Ka3 {[%clk 0:00:09]}  e3 {[%clk 0:00:11]} 68. Ka2 {[%clk 0:00:10]}  e2 {[%clk 0:00:12]} 69. Ka3 {[%clk 0:00:11]}  e1=Q {[%clk 0:00:12]} 70. Ka2 {[%clk 0:00:12]}  Qea5# {[%clk 0:00:12]} 0-1


[Site "https://www.chess.com"]

[Event "Titled Tuesday Blitz May 23 Late 2023"]
[White "Naroditsky, Daniel"]
[Black "Mirimanian, Hayk"]
[WhiteFideId "2026961"]
[BlackFideId "4700180"]
[WhiteElo "2633"]
[BlackElo "2280"]
[Result "0-1"]
[Round "09"]
[TimeControl "180+2"]
[Date "2023.05.23"]
[WhiteClock "0:00:49"]
[BlackClock "0:00:25"]

1. d4 {[%clk 0:03:00]}  d5 {[%clk 0:02:54]} 2. Nc3 {[%clk 0:03:01]}  Nf6 {[%clk 0:02:48]} 3. Bf4 {[%clk 0:03:01]}  e6 {[%clk 0:02:46]} 4. e3 {[%clk 0:03:01]}  Bb4 {[%clk 0:02:44]} 5. Bd3 {[%clk 0:03:00]}  c5 {[%clk 0:02:42]} 6. dxc5 {[%clk 0:03:00]}  Nbd7 {[%clk 0:02:40]} 7. Nf3 {[%clk 0:03:00]}  Nxc5 {[%clk 0:02:38]} 8. O-O {[%clk 0:03:00]}  O-O {[%clk 0:02:32]} 9. Ne5 {[%clk 0:02:55]}  Bxc3 {[%clk 0:02:22]} 10. bxc3 {[%clk 0:02:55]}  Nce4 {[%clk 0:02:23]} 11. c4 {[%clk 0:02:52]}  dxc4 {[%clk 0:01:49]} 12. Nxc4 {[%clk 0:02:53]}  b6 {[%clk 0:01:50]} 13. Qf3 {[%clk 0:02:37]}  Bb7 {[%clk 0:01:44]} 14. Qh3 {[%clk 0:02:37]}  Nc5 {[%clk 0:01:40]} 15. Be2 {[%clk 0:02:24]}  Nd5 {[%clk 0:01:30]} 16. Be5 {[%clk 0:02:14]}  f6 {[%clk 0:01:28]} 17. Bd4 {[%clk 0:01:45]}  Nf4 {[%clk 0:01:14]} 18. Qg4 {[%clk 0:01:31]}  Nxe2+ {[%clk 0:01:13]} 19. Qxe2 {[%clk 0:01:32]}  Qd5 {[%clk 0:01:12]} 20. f3 {[%clk 0:01:19]}  Ba6 {[%clk 0:01:09]} 21. Rfd1 {[%clk 0:01:15]}  Qxc4 {[%clk 0:01:02]} 22. Qf2 {[%clk 0:01:16]}  e5 {[%clk 0:01:02]} 23. Bb2 {[%clk 0:01:15]}  Rfd8 {[%clk 0:01:02]} 24. h4 {[%clk 0:01:15]}  Na4 {[%clk 0:01:02]} 25. Ba3 {[%clk 0:01:15]}  Nc3 {[%clk 0:01:02]} 26. Re1 {[%clk 0:01:15]}  Ne2+ {[%clk 0:00:49]} 27. Kh2 {[%clk 0:01:15]}  Qxc2 {[%clk 0:00:49]} 28. Rec1 {[%clk 0:01:07]}  Qa4 {[%clk 0:00:46]} 29. Be7 {[%clk 0:01:02]}  Nxc1 {[%clk 0:00:42]} 30. Rxc1 {[%clk 0:01:03]}  Rd7 {[%clk 0:00:40]} 31. Bxf6 {[%clk 0:01:00]}  gxf6 {[%clk 0:00:35]} 32. Qg3+ {[%clk 0:01:01]}  Rg7 {[%clk 0:00:35]} 33. Qh3 {[%clk 0:01:01]}  Qe8 {[%clk 0:00:30]} 34. h5 {[%clk 0:01:01]}  Rc8 {[%clk 0:00:27]} 35. Rd1 {[%clk 0:01:00]}  Rc2 {[%clk 0:00:27]} 36. Rg1 {[%clk 0:00:55]}  Bc8 {[%clk 0:00:25]} 37. Qh4 {[%clk 0:00:49]}  Rg5 {[%clk 0:00:25]} 0-1


[Site "https://www.chess.com"]

[Event "Titled Tuesday Blitz May 23 Late 2023"]
[White "Zemlyanskii, Ivan"]
[Black "Paravyan, David"]
[WhiteFideId "24249971"]
[BlackFideId "4194985"]
[WhiteElo "2421"]
[BlackElo "2563"]
[Result "1-0"]
[Round "09"]
[TimeControl "180+2"]
[Date "2023.05.23"]
[WhiteClock "0:00:34"]
[BlackClock "0:01:12"]

1. d4 {[%clk 0:02:59]}  Nf6 {[%clk 0:02:59]} 2. c4 {[%clk 0:02:59]}  e6 {[%clk 0:03:00]} 3. Bf4 {[%clk 0:02:59]}  d5 {[%clk 0:02:59]} 4. Nc3 {[%clk 0:02:59]}  c5 {[%clk 0:02:56]} 5. Nf3 {[%clk 0:02:59]}  Nc6 {[%clk 0:02:56]} 6. Nb5 {[%clk 0:02:56]}  cxd4 {[%clk 0:02:50]} 7. Nc7+ {[%clk 0:02:31]}  Qxc7 {[%clk 0:02:50]} 8. Bxc7 {[%clk 0:02:21]}  Bb4+ {[%clk 0:02:49]} 9. Nd2 {[%clk 0:02:13]}  dxc4 {[%clk 0:02:24]} 10. a3 {[%clk 0:02:07]}  Bxd2+ {[%clk 0:02:24]} 11. Qxd2 {[%clk 0:02:08]}  e5 {[%clk 0:02:18]} 12. Bxe5 {[%clk 0:01:32]}  Nxe5 {[%clk 0:02:19]} 13. Qxd4 {[%clk 0:01:32]}  Nc6 {[%clk 0:02:18]} 14. Qxc4 {[%clk 0:01:29]}  Be6 {[%clk 0:02:19]} 15. Qc3 {[%clk 0:01:26]}  Ne4 {[%clk 0:02:18]} 16. Qxg7 {[%clk 0:01:14]}  O-O-O {[%clk 0:02:18]} 17. f3 {[%clk 0:01:15]}  Rhg8 {[%clk 0:02:10]} 18. Qh6 {[%clk 0:01:12]}  Nc5 {[%clk 0:02:05]} 19. e4 {[%clk 0:01:03]}  Kb8 {[%clk 0:02:03]} 20. Qe3 {[%clk 0:00:59]}  Nd4 {[%clk 0:02:02]} 21. Rc1 {[%clk 0:00:58]}  Ncb3 {[%clk 0:01:59]} 22. Rc3 {[%clk 0:00:55]}  Rc8 {[%clk 0:01:52]} 23. Kf2 {[%clk 0:00:54]}  Rxc3 {[%clk 0:01:36]} 24. bxc3 {[%clk 0:00:55]}  Nc2 {[%clk 0:01:37]} 25. Qd3 {[%clk 0:00:55]}  Nca1 {[%clk 0:01:24]} 26. Be2 {[%clk 0:00:54]}  Ka8 {[%clk 0:01:24]} 27. Rd1 {[%clk 0:00:46]}  Rc8 {[%clk 0:01:21]} 28. c4 {[%clk 0:00:42]}  Nc5 {[%clk 0:01:21]} 29. Qc3 {[%clk 0:00:40]}  Nab3 {[%clk 0:01:20]} 30. Rb1 {[%clk 0:00:40]}  b5 {[%clk 0:01:16]} 31. Rxb3 {[%clk 0:00:36]}  Nxb3 {[%clk 0:01:17]} 32. Qxb3 {[%clk 0:00:36]}  bxc4 {[%clk 0:01:17]} 33. Qc3 {[%clk 0:00:37]}  Kb7 {[%clk 0:01:18]} 34. f4 {[%clk 0:00:37]}  f6 {[%clk 0:01:17]} 35. Qxf6 {[%clk 0:00:32]}  Bg8 {[%clk 0:01:18]} 36. Qc3 {[%clk 0:00:32]}  Kb6 {[%clk 0:01:18]} 37. Ke3 {[%clk 0:00:32]}  a5 {[%clk 0:01:18]} 38. f5 {[%clk 0:00:33]}  Kb5 {[%clk 0:01:12]} 39. g4 {[%clk 0:00:34]} 1-0


[Site "https://www.chess.com"]

[Event "Titled Tuesday Blitz May 23 Late 2023"]
[White "Ilkhomi, Jaloliddin"]
[Black "Rustemov, Alexander"]
[WhiteFideId "14700948"]
[BlackFideId "4119002"]
[WhiteElo "2045"]
[BlackElo "2860"]
[Result "1-0"]
[Round "09"]
[TimeControl "180+2"]
[Date "2023.05.23"]
[WhiteClock "0:00:06"]
[BlackClock "0:00:10"]

1. Nf3 {[%clk 0:03:00]}  d5 {[%clk 0:02:58]} 2. d4 {[%clk 0:03:00]}  Nf6 {[%clk 0:02:55]} 3. Bf4 {[%clk 0:03:00]}  c5 {[%clk 0:02:55]} 4. e3 {[%clk 0:03:00]}  Nc6 {[%clk 0:02:56]} 5. c3 {[%clk 0:03:00]}  Bg4 {[%clk 0:02:56]} 6. Nbd2 {[%clk 0:03:00]}  e6 {[%clk 0:02:57]} 7. Qb3 {[%clk 0:02:59]}  Qc8 {[%clk 0:02:57]} 8. Ne5 {[%clk 0:02:56]}  Bh5 {[%clk 0:02:54]} 9. Rc1 {[%clk 0:02:56]}  Be7 {[%clk 0:02:44]} 10. Qa4 {[%clk 0:02:38]}  a6 {[%clk 0:02:37]} 11. Nxc6 {[%clk 0:02:38]}  bxc6 {[%clk 0:02:23]} 12. Bd3 {[%clk 0:02:37]}  O-O {[%clk 0:02:22]} 13. O-O {[%clk 0:02:37]}  Qb7 {[%clk 0:02:14]} 14. b3 {[%clk 0:02:36]}  Nd7 {[%clk 0:02:10]} 15. f3 {[%clk 0:02:23]}  Bg6 {[%clk 0:02:08]} 16. Bxg6 {[%clk 0:02:22]}  hxg6 {[%clk 0:02:09]} 17. c4 {[%clk 0:02:19]}  Rfc8 {[%clk 0:02:06]} 18. Qa5 {[%clk 0:02:15]}  Qb6 {[%clk 0:02:01]} 19. Qc3 {[%clk 0:02:05]}  a5 {[%clk 0:01:58]} 20. Rfd1 {[%clk 0:01:59]}  a4 {[%clk 0:01:56]} 21. cxd5 {[%clk 0:01:58]}  cxd5 {[%clk 0:01:56]} 22. dxc5 {[%clk 0:01:58]}  Bxc5 {[%clk 0:01:49]} 23. bxa4 {[%clk 0:01:46]}  e5 {[%clk 0:01:45]} 24. a5 {[%clk 0:01:38]}  Qa7 {[%clk 0:01:38]} 25. Bg5 {[%clk 0:01:03]}  f6 {[%clk 0:01:38]} 26. Qd3 {[%clk 0:01:00]}  fxg5 {[%clk 0:01:36]} 27. Qxd5+ {[%clk 0:01:00]}  Kh7 {[%clk 0:01:35]} 28. Kh1 {[%clk 0:00:43]}  Bxe3 {[%clk 0:01:32]} 29. Rxc8 {[%clk 0:00:43]}  Rxc8 {[%clk 0:01:32]} 30. Ne4 {[%clk 0:00:44]}  Nf6 {[%clk 0:01:28]} 31. Qe6 {[%clk 0:00:35]}  Nxe4 {[%clk 0:01:22]} 32. Qh3+ {[%clk 0:00:35]}  Kg8 {[%clk 0:01:18]} 33. Qxc8+ {[%clk 0:00:36]}  Kh7 {[%clk 0:01:18]} 34. Qh3+ {[%clk 0:00:35]}  Kg8 {[%clk 0:01:17]} 35. fxe4 {[%clk 0:00:16]}  Bd4 {[%clk 0:01:13]} 36. Rc1 {[%clk 0:00:14]}  g4 {[%clk 0:00:57]} 37. Qxg4 {[%clk 0:00:14]}  Be3 {[%clk 0:00:50]} 38. Rc8+ {[%clk 0:00:12]}  Kh7 {[%clk 0:00:50]} 39. Qh3+ {[%clk 0:00:08]}  Bh6 {[%clk 0:00:50]} 40. Qe6 {[%clk 0:00:08]}  Bf4 {[%clk 0:00:30]} 41. Qg8+ {[%clk 0:00:08]}  Kh6 {[%clk 0:00:30]} 42. Qh8+ {[%clk 0:00:07]}  Kg5 {[%clk 0:00:31]} 43. Qd8+ {[%clk 0:00:08]}  Kh5 {[%clk 0:00:27]} 44. Qd1+ {[%clk 0:00:05]}  Kg5 {[%clk 0:00:25]} 45. Rh8 {[%clk 0:00:05]}  Qc5 {[%clk 0:00:12]} 46. Qd8+ {[%clk 0:00:05]}  Kg4 {[%clk 0:00:10]} 47. Qh4# {[%clk 0:00:06]} 1-0


[Site "https://www.chess.com"]

[Event "Titled Tuesday Blitz May 23 Late 2023"]
[White "Rostovtsev, Dmitry"]
[Black "Machidon, Cristi"]
[WhiteFideId "34278320"]
[BlackFideId "13904590"]
[WhiteElo "2344"]
[BlackElo "2355"]
[Result "1-0"]
[Round "09"]
[TimeControl "180+2"]
[Date "2023.05.23"]
[WhiteClock "0:01:38"]
[BlackClock "0:00:04"]

1. e4 {[%clk 0:03:00]}  c6 {[%clk 0:02:59]} 2. d4 {[%clk 0:03:00]}  d5 {[%clk 0:02:59]} 3. e5 {[%clk 0:03:01]}  Bf5 {[%clk 0:02:59]} 4. Nc3 {[%clk 0:03:01]}  e6 {[%clk 0:02:59]} 5. g4 {[%clk 0:03:02]}  Bg6 {[%clk 0:02:59]} 6. Nge2 {[%clk 0:03:02]}  c5 {[%clk 0:02:58]} 7. h4 {[%clk 0:03:03]}  h5 {[%clk 0:02:58]} 8. Nf4 {[%clk 0:03:03]}  Bh7 {[%clk 0:02:59]} 9. Nxh5 {[%clk 0:03:02]}  Nc6 {[%clk 0:02:58]} 10. dxc5 {[%clk 0:03:03]}  Bxc5 {[%clk 0:02:53]} 11. Bg5 {[%clk 0:03:03]}  Qc7 {[%clk 0:02:52]} 12. f4 {[%clk 0:03:02]}  Kf8 {[%clk 0:02:37]} 13. Bd3 {[%clk 0:03:02]}  Rc8 {[%clk 0:02:22]} 14. a3 {[%clk 0:02:57]}  Bd4 {[%clk 0:02:12]} 15. Nb5 {[%clk 0:02:43]}  Qb6 {[%clk 0:02:00]} 16. c3 {[%clk 0:02:30]}  Bf2+ {[%clk 0:01:47]} 17. Kf1 {[%clk 0:02:30]}  Bxd3+ {[%clk 0:01:42]} 18. Qxd3 {[%clk 0:02:30]}  Rxh5 {[%clk 0:01:32]} 19. gxh5 {[%clk 0:02:26]}  f6 {[%clk 0:01:32]} 20. exf6 {[%clk 0:02:17]}  gxf6 {[%clk 0:01:33]} 21. h6 {[%clk 0:02:16]}  fxg5 {[%clk 0:01:00]} 22. h7 {[%clk 0:02:15]}  Kg7 {[%clk 0:01:00]} 23. h8=Q+ {[%clk 0:01:37]}  Kxh8 {[%clk 0:00:55]} 24. hxg5+ {[%clk 0:01:37]}  Kg7 {[%clk 0:00:53]} 25. Rh7+ {[%clk 0:01:38]}  Kf8 {[%clk 0:00:51]} 26. Qg6 {[%clk 0:01:38]}  Qxb5+ {[%clk 0:00:04]} 27. Kg2 {[%clk 0:01:38]} 1-0


[Site "https://www.chess.com"]